bitfinex/quotes_BTCUSD_20250812
["timestamp","ask_amount","ask_price","bid_price","bid_amount"]
[1755025945054,0.002,119480.0,119470.0,0.8647541]
[1755025945260,0.00351479,119480.0,119470.0,0.30018786]
[1755025945466,0.002,119480.0,119470.0,0.8647541]
[1755025947942,0.001,119480.0,119470.0,0.8647541]
[1755025948355,0.00151479,119490.0,119480.0,0.16739203]
[1755025948572,0.19318217,119500.0,119490.0,0.16737802]
[1755025948779,0.31004337,119500.0,119490.0,0.86169426]
[1755025948977,0.31004337,119500.0,119490.0,0.86472426]
[1755025949189,0.28366781,119500.0,119490.0,0.69734624]
[1755025950586,0.28366781,119500.0,119490.0,0.86472426]
[1755025950788,0.28366781,119500.0,119490.0,0.69734624]
[1755025951295,0.28366781,119500.0,119490.0,0.13278]
[1755025952014,0.28767478,119500.0,119490.0,0.30015802]
[1755025952425,0.28767478,119500.0,119490.0,0.86472426]
[1755025952635,0.28767478,119500.0,119490.0,0.69734624]
[1755025953043,0.28767478,119500.0,119490.0,0.86472426]
[1755025953502,0.28767478,119500.0,119490.0,0.69734624]
[1755025955043,0.28767478,119500.0,119490.0,0.13278]
[1755025955269,0.28767478,119500.0,119490.0,0.69734624]
[1755025956112,0.28767478,119500.0,119490.0,0.13278]
[1755025956322,0.28767478,119500.0,119490.0,0.69734624]
[1755025957125,0.28767478,119500.0,119490.0,0.86472426]
[1755025957126,0.17913337,119500.0,119490.0,0.86472426]
[1755025960276,0.17913337,119500.0,119490.0,0.30015802]
[1755025960516,0.17913337,119500.0,119490.0,0.86472426]
[1755025961215,0.17136401,119500.0,119490.0,0.86472426]
[1755025961439,0.17916106,119500.0,119490.0,0.86472426]
[1755025962510,0.17916188,119500.0,119490.0,0.86472426]
[1755025964402,0.01179787,119500.0,119490.0,0.86472426]
[1755025964626,0.01331266,119500.0,119490.0,0.86472426]
[1755025967022,0.18067667,119500.0,119490.0,0.86472426]
[1755025967235,0.17916188,119500.0,119490.0,0.86472426]
[1755025967469,0.17716188,119500.0,119490.0,0.86472426]
[1755025967643,0.17516188,119500.0,119490.0,0.86472426]
[1755025967882,0.00779787,119500.0,119490.0,0.86472426]
[1755025968032,0.17767667,119500.0,119490.0,0.86472426]
[1755025968245,0.17616188,119500.0,119490.0,0.86472426]
[1755025968667,0.00979787,119500.0,119490.0,0.86472426]
[1755025969013,0.17867667,119500.0,119490.0,0.86472426]
[1755025969214,0.17716188,119500.0,119490.0,0.86472426]
[1755025969972,0.00979787,119500.0,119490.0,0.86472426]
[1755025970368,0.002,119500.0,119490.0,0.86472426]
[1755025970571,0.00980285,119500.0,119490.0,0.86472426]
[1755025974314,0.002,119500.0,119490.0,0.86472426]
[1755025974912,0.002,119500.0,119490.0,0.93233466]
[1755025975499,0.002,119500.0,119490.0,1.21505791]
[1755025976000,0.002,119500.0,119490.0,1.39017191]
[1755025978030,0.002,119500.0,119490.0,1.41588619]
[1755025981698,0.002,119500.0,119490.0,1.98045243]
[1755025981901,0.002,119500.0,119490.0,1.41588619]
[1755025982576,0.001,119500.0,119490.0,2.00588619]
[1755025982784,0.001,119500.0,119490.0,1.81163579]
[1755025982952,0.001,119500.0,119490.0,1.93923579]
[1755025983368,0.10299099,119520.0,119510.0,0.16735001]
[1755025983589,0.10382099,119520.0,119510.0,0.85955625]
[1755025984645,0.10482099,119520.0,119510.0,0.85955625]
[1755025985225,0.10582099,119520.0,119510.0,0.86252625]
[1755025985436,0.10582099,119520.0,119510.0,0.86455625]
[1755025986464,0.10499099,119520.0,119510.0,0.86455625]
[1755025987299,0.10499099,119520.0,119510.0,0.29999001]
[1755025987669,0.10499099,119520.0,119510.0,0.86455625]
[1755025994245,0.10499099,119520.0,119510.0,0.29999001]
[1755025994447,0.10499099,119520.0,119510.0,0.86455625]
[1755025999359,0.10499099,119520.0,119510.0,1.53695674]
[1755026000213,0.10191755,119520.0,119510.0,1.73695674]
[1755026000627,0.10091755,119520.0,119510.0,1.73695674]
[1755026001327,0.10091755,119520.0,119510.0,1.73795674]
[1755026002376,0.10091755,119520.0,119510.0,1.73895674]
[1755026002575,0.10091755,119520.0,119510.0,1.76895674]
[1755026005739,0.10091755,119520.0,119510.0,1.91895674]
[1755026009661,0.10091755,119520.0,119510.0,1.91789208]
[1755026010458,0.10091755,119520.0,119510.0,1.89659881]
[1755026010708,0.10091755,119520.0,119510.0,1.87145146]
[1755026011860,0.10091755,119520.0,119510.0,1.84630411]
[1755026012481,0.10091755,119520.0,119510.0,1.82501084]
[1755026015418,0.10091755,119520.0,119510.0,1.80963712]
[1755026017385,0.10091755,119520.0,119510.0,1.77963712]
[1755026018846,0.10091755,119520.0,119510.0,1.65199712]
[1755026019072,0.10091755,119520.0,119510.0,1.77959712]
[1755026020385,0.10091755,119520.0,119510.0,1.77505385]
[1755026020593,0.10091755,119520.0,119510.0,1.75830385]
[1755026026683,0.10091755,119520.0,119510.0,1.72156673]
[1755026026895,0.10091755,119520.0,119510.0,1.88891674]
[1755026027683,0.10091755,119520.0,119510.0,1.86964347]
[1755026029691,0.10091755,119520.0,119510.0,1.87276347]
[1755026029902,0.10091755,119520.0,119510.0,1.2993795]
[1755026030116,0.10091755,119520.0,119510.0,1.86394574]
[1755026030559,0.10091755,119520.0,119510.0,1.88905374]
[1755026031448,0.10091755,119520.0,119510.0,1.88725374]
[1755026031700,0.00318,119530.0,119520.0,0.16733601]
[1755026031919,0.00519,119530.0,119520.0,1.50659174]
[1755026032173,0.00519,119530.0,119520.0,1.48529847]
[1755026032401,0.00519,119530.0,119520.0,0.35616599]
[1755026032632,0.00519,119530.0,119520.0,1.48529847]
[1755026034346,0.00519,119530.0,119520.0,1.4640052]
[1755026034788,0.00519,119530.0,119520.0,0.81671571]
[1755026035987,0.00519,119530.0,119520.0,1.38128195]
[1755026036652,0.00201,119530.0,119520.0,1.38128195]
[1755026036853,0.00201,119530.0,119520.0,1.38330195]
[1755026039770,0.02092902,119550.0,119540.0,0.16730801]
[1755026040008,0.02708231,119550.0,119540.0,0.85939425]
[1755026040234,0.00564,119550.0,119540.0,0.85939425]
[1755026040458,0.17293401,119550.0,119540.0,0.85939425]
[1755026040682,0.17293401,119550.0,119540.0,0.73187425]
[1755026040898,0.17393401,119550.0,119540.0,0.85959425]
[1755026042317,0.17293401,119550.0,119540.0,0.29502801]
[1755026042528,0.03970144,119550.0,119540.0,0.29502801]
[1755026042738,0.03970144,119550.0,119540.0,0.85959425]
[1755026042951,0.17293401,119550.0,119540.0,0.85959425]
[1755026044287,0.17293401,119550.0,119540.0,0.84071806]
[1755026045629,0.17293401,119550.0,119540.0,0.81942479]
[1755026046708,0.17301578,119550.0,119540.0,0.81942479]
[1755026047547,0.17301578,119550.0,119540.0,0.69228624]
[1755026047990,0.17301578,119550.0,119540.0,0.85959425]
[1755026048891,0.20708539,119550.0,119540.0,0.55090969]
[1755026049104,0.20708539,119550.0,119540.0,0.7182177]
[1755026050252,0.20708539,119550.0,119540.0,0.29502801]
[1755026050462,0.20708539,119550.0,119540.0,0.55090969]
[1755026050671,0.20708539,119550.0,119540.0,0.5904977]
[1755026050878,0.16730801,119540.0,119530.0,0.1757606]
[1755026051076,0.16946801,119540.0,119530.0,0.72667029]
[1755026051279,0.17254801,119540.0,119530.0,0.72667029]
[1755026051442,0.17254801,119540.0,119530.0,0.70537702]
[1755026051637,0.17254801,119540.0,119530.0,0.57765702]
[1755026051857,0.17254801,119540.0,119530.0,0.70533702]
[1755026052872,0.17254801,119540.0,119530.0,0.28214733]
[1755026053072,0.17254801,119540.0,119530.0,0.70533702]
[1755026053651,0.17254801,119540.0,119530.0,0.68404375]
[1755026054699,0.17254801,119540.0,119530.0,0.66275048]
[1755026055114,0.16946801,119540.0,119530.0,0.66472048]
[1755026055333,0.16946801,119540.0,119530.0,0.66784048]
[1755026055752,0.16946801,119540.0,119530.0,0.66472048]
[1755026056796,0.00216,119540.0,119530.0,0.64342721]
[1755026057247,0.16946801,119540.0,119530.0,0.64342721]
[1755026057735,0.16946801,119540.0,119530.0,0.64145721]
[1755026057736,0.17254801,119540.0,119530.0,0.64145721]
[1755026057961,0.22577431,119540.0,119530.0,0.12768]
[1755026058155,0.18477103,119530.0,119520.0,0.00821833]
[1755026058400,0.16733601,119520.0,119510.0,0.24332704]
[1755026058600,0.16949601,119520.0,119510.0,0.72847633]
[1755026058835,0.16949601,119520.0,119510.0,0.86977678]
[1755026059008,0.00216,119520.0,119510.0,0.87289678]
[1755026059566,0.00216,119520.0,119510.0,0.30840664]
[1755026059788,0.18785103,119530.0,119510.0,0.87289678]
[1755026060013,0.18785103,119530.0,119520.0,0.12768]
[1755026060228,0.24082483,119530.0,119520.0,0.12768]
[1755026061389,0.24182483,119530.0,119520.0,0.12768]
[1755026062154,0.24282483,119530.0,119520.0,0.12768]
[1755026063509,0.24282483,119530.0,119520.0,0.69217014]
[1755026063827,0.24282483,119530.0,119520.0,0.67087687]
[1755026064013,0.19201103,119530.0,119520.0,0.67087687]
[1755026064219,0.18677103,119530.0,119520.0,0.84330288]
[1755026064557,0.18893103,119530.0,119520.0,0.84018288]
[1755026064766,0.18893103,119530.0,119520.0,0.67087687]
[1755026065002,0.19201103,119530.0,119520.0,0.67087687]
[1755026065393,0.19201103,119530.0,119520.0,0.10638673]
[1755026065626,0.19201103,119530.0,119520.0,0.67087687]
[1755026065833,0.19201103,119530.0,119520.0,0.83438564]
[1755026066047,0.19201103,119530.0,119520.0,1.53438564]
[1755026066264,0.18893103,119530.0,119520.0,1.53438564]
[1755026066473,0.18893103,119530.0,119520.0,1.53635564]
[1755026066811,0.01944902,119530.0,119520.0,1.53947564]
[1755026067635,0.002,119530.0,119520.0,2.12904629]
[1755026071225,0.002,119530.0,119520.0,2.15415529]
[1755026071653,0.001,119530.0,119520.0,2.15415529]
[1755026072879,0.001,119530.0,119520.0,2.23687854]
[1755026073387,0.16777614,119550.0,119540.0,0.16730801]
[1755026073614,0.17447093,119550.0,119540.0,1.06939815]
[1755026073808,0.17295614,119550.0,119540.0,1.06939815]
[1755026074001,0.17295614,119550.0,119540.0,0.50490801]
[1755026074226,0.17295614,119550.0,119540.0,1.06939815]
[1755026074764,0.17495614,119550.0,119540.0,1.06939815]
[1755026075209,0.17495614,119550.0,119540.0,0.90209014]
[1755026075452,0.20762673,119550.0,119540.0,0.3376]
[1755026077871,0.22507575,119550.0,119540.0,0.3376]
[1755026079051,0.307799,119550.0,119540.0,0.21]
[1755026079281,0.307799,119550.0,119540.0,0.33756]
[1755026079447,0.307799,119550.0,119540.0,0.12756]
[1755026089219,0.304649,119550.0,119540.0,0.12961]
[1755026089644,0.304649,119550.0,119540.0,0.29691801]
[1755026090003,0.304649,119550.0,119540.0,0.30011801]
[1755026091273,0.304649,119550.0,119540.0,0.86460815]
[1755026091981,0.27197841,119550.0,119540.0,0.86460815]
[1755026092423,0.27197841,119550.0,119540.0,0.30011801]
[1755026092879,0.01993079,119550.0,119540.0,0.86460815]
[1755026093966,0.01993079,119550.0,119540.0,1.56460815]
[1755026095507,0.01993079,119550.0,119540.0,0.86460815]
[1755026096439,0.00248177,119550.0,119540.0,0.86460815]
[1755026097055,0.00399656,119550.0,119540.0,0.86460815]
[1755026098585,0.00248177,119550.0,119540.0,1.56460815]
[1755026099502,0.00248177,119550.0,119540.0,1.56364815]
[1755026101410,0.00399656,119550.0,119540.0,1.56364815]
[1755026101730,0.00248177,119550.0,119540.0,1.56364815]
[1755026102718,0.00148177,119550.0,119540.0,1.56364815]
[1755026103223,0.00048177,119550.0,119540.0,1.03364815]
[1755026104939,0.00048177,119550.0,119540.0,1.1163714]
[1755026105275,0.00048177,119550.0,119540.0,1.1414754]
[1755026105910,0.00048177,119550.0,119540.0,1.70596554]
[1755026106338,0.00048177,119550.0,119540.0,1.1414754]
[1755026106989,0.00048177,119550.0,119540.0,1.70596554]
[1755026107407,0.00048177,119550.0,119540.0,1.90596554]
[1755026108666,0.00048177,119550.0,119540.0,1.92879554]
[1755026108876,0.00048177,119550.0,119540.0,1.93179554]
[1755026109553,0.00048177,119550.0,119540.0,1.93079554]
[1755026109769,0.0004,119560.0,119550.0,1.64627429]
[1755026109985,0.0004,119560.0,119550.0,0.9280658]
[1755026110201,0.0004,119560.0,119550.0,2.06022608]
[1755026111310,0.0004,119560.0,119550.0,2.06222608]
[1755026111994,0.0004,119560.0,119550.0,1.93578608]
[1755026112204,0.0004,119560.0,119550.0,2.06318608]
[1755026114551,0.0004,119560.0,119550.0,2.08841819]
[1755026115345,0.0004,119560.0,119550.0,2.09176419]
[1755026115897,0.0004,119560.0,119550.0,1.92176419]
[1755026118908,0.0004,119560.0,119550.0,2.62176419]
[1755026127511,0.0004,119560.0,119550.0,2.82240419]
[1755026132632,0.0004,119560.0,119550.0,2.96200007]
[1755026137344,3.775e-05,119560.0,119550.0,2.96200007]
[1755026147262,0.0004,119570.0,119560.0,0.16728002]
[1755026147470,0.0004,119570.0,119560.0,1.65130943]
[1755026147942,0.0004,119570.0,119560.0,1.87130943]
[1755026148760,0.0004,119570.0,119560.0,1.87479943]
[1755026149608,0.0004,119570.0,119560.0,3.34337559]
[1755026151499,0.0004,119570.0,119560.0,3.34537559]
[1755026152487,0.0004,119570.0,119560.0,2.07979943]
[1755026152671,0.0004,119570.0,119560.0,1.93856775]
[1755026153015,0.0004,119570.0,119560.0,1.93876775]
[1755026155041,0.0004,119570.0,119560.0,1.71876775]
[1755026157356,3.799e-05,119570.0,119560.0,1.71876775]
[1755026157983,3.799e-05,119570.0,119560.0,2.41876775]
[1755026159439,0.0004,119580.0,119570.0,0.51726603]
[1755026159643,0.00088868,119580.0,119570.0,1.29321152]
[1755026159943,0.00088868,119580.0,119570.0,1.29636152]
[1755026160165,0.00088868,119580.0,119570.0,1.29970752]
[1755026160778,0.00088868,119580.0,119570.0,1.30070752]
[1755026160985,0.00088868,119580.0,119570.0,1.30270752]
[1755026165110,0.00288868,119580.0,119570.0,1.30270752]
[1755026165322,0.00593868,119580.0,119570.0,1.29752752]
[1755026166503,0.00593868,119580.0,119570.0,1.17000752]
[1755026166922,0.00593868,119580.0,119570.0,1.29740752]
[1755026171569,0.00288868,119580.0,119570.0,1.29943752]
[1755026172324,0.00593868,119580.0,119570.0,1.29736752]
[1755026172780,0.00493868,119580.0,119570.0,1.29736752]
[1755026173437,0.00188868,119580.0,119570.0,1.29736752]
[1755026173675,0.00345,119590.0,119580.0,0.16725204]
[1755026173903,0.00345,119590.0,119580.0,0.94309818]
[1755026173904,0.0055317,119590.0,119580.0,0.94309818]
[1755026174157,0.0055317,119590.0,119580.0,0.94100753]
[1755026174578,0.0055317,119590.0,119580.0,0.96610353]
[1755026175000,0.0055317,119590.0,119580.0,0.97454506]
[1755026175420,0.0024817,119590.0,119580.0,0.97657506]
[1755026177361,0.0024817,119590.0,119580.0,0.97757506]
[1755026177779,0.0024817,119590.0,119580.0,0.97957506]
[1755026179289,0.0004817,119590.0,119580.0,0.98272506]
[1755026181383,0.0024817,119590.0,119580.0,0.98272506]
[1755026183182,0.0004817,119590.0,119580.0,0.98272506]
[1755026184847,0.0004817,119590.0,119580.0,1.68717472]
[1755026186383,0.0004817,119590.0,119580.0,1.88717472]
[1755026187274,0.0004817,119590.0,119580.0,2.73258932]
[1755026187484,0.0004817,119590.0,119580.0,1.88717472]
[1755026187927,5.737e-05,119590.0,119580.0,1.88717472]
[1755026188815,5.737e-05,119590.0,119580.0,1.18255364]
[1755026189286,1.737e-05,119590.0,119580.0,1.67160964]
[1755026189493,1.737e-05,119590.0,119580.0,2.12051046]
[1755026190598,1.737e-05,119590.0,119580.0,1.94293346]
[1755026190833,1.737e-05,119590.0,119580.0,1.37943264]
[1755026192591,1.737e-05,119590.0,119580.0,1.18255364]
[1755026193777,1.737e-05,119590.0,119580.0,1.29320864]
[1755026194567,1.737e-05,119590.0,119580.0,1.18255364]
[1755026196981,1.737e-05,119590.0,119580.0,2.04247746]
[1755026197819,0.00359,119610.0,119600.0,0.16722408]
[1755026198017,0.00571,119610.0,119600.0,1.42503602]
[1755026198251,0.00571,119610.0,119600.0,1.50566897]
[1755026198457,0.00571,119610.0,119600.0,0.37866733]
[1755026198607,0.00571,119610.0,119600.0,1.53075897]
[1755026198813,0.00571,119610.0,119600.0,0.40375733]
[1755026199020,0.00571,119610.0,119600.0,0.96725815]
[1755026199216,0.00671,119610.0,119600.0,0.40375733]
[1755026199418,0.00671,119610.0,119600.0,1.53075897]
[1755026199854,0.00352,119610.0,119600.0,1.53271897]
[1755026200924,0.00452,119610.0,119600.0,1.53271897]
[1755026201342,0.0024,119610.0,119600.0,1.53579897]
[1755026201546,0.0024,119610.0,119600.0,1.95799597]
[1755026201761,0.0014,119610.0,119600.0,2.15799597]
[1755026202182,0.0004,119610.0,119600.0,2.15799597]
[1755026202781,0.0004,119610.0,119600.0,1.91019197]
[1755026202970,0.0004,119610.0,119600.0,1.73819897]
[1755026203175,0.0004,119610.0,119600.0,1.74019897]
[1755026204536,0.0004,119610.0,119600.0,0.61319733]
[1755026204948,0.0004,119610.0,119600.0,1.74019897]
[1755026206312,0.0004,119610.0,119600.0,1.84772297]
[1755026207251,0.0004,119610.0,119600.0,0.61319733]
[1755026207612,0.0004,119610.0,119600.0,1.74019897]
[1755026209079,0.0004,119610.0,119600.0,1.84560097]
[1755026209534,0.0004,119610.0,119600.0,1.74019897]
[1755026210861,0.0004,119610.0,119600.0,0.61319733]
[1755026211089,0.0004,119610.0,119600.0,1.88077758]
[1755026211298,0.00252,119610.0,119600.0,1.67801758]
[1755026211722,0.00319,119620.0,119610.0,0.16721009]
[1755026211931,0.00531,119620.0,119610.0,1.22542684]
[1755026212564,0.00212,119620.0,119610.0,1.25051384]
[1755026212775,0.00212,119620.0,119610.0,0.96882694]
[1755026213546,0.00212,119620.0,119610.0,0.99389089]
[1755026213991,0.00319,119630.0,119620.0,0.16719612]
[1755026214178,0.0033365,119630.0,119620.0,0.97218904]
[1755026214332,0.0054565,119630.0,119620.0,0.97218904]
[1755026215572,0.0064565,119630.0,119620.0,0.97218904]
[1755026216598,0.0074565,119630.0,119620.0,0.97218904]
[1755026217254,0.0042665,119630.0,119620.0,0.97414904]
[1755026217453,0.0042665,119630.0,119620.0,0.97722904]
[1755026217873,0.0042665,119630.0,119620.0,0.41386244]
[1755026218074,0.0042665,119630.0,119620.0,0.97722904]
[1755026218502,0.0042665,119630.0,119620.0,0.97414904]
[1755026218835,0.0042665,119630.0,119620.0,0.99923604]
[1755026219451,0.0042665,119630.0,119620.0,1.00224604]
[1755026219652,0.0042665,119630.0,119620.0,1.70224604]
[1755026220065,0.0042665,119630.0,119620.0,1.90224604]
[1755026220928,0.0021465,119630.0,119620.0,1.33887944]
[1755026221131,0.0021465,119630.0,119620.0,1.90224604]
[1755026221544,0.0021465,119630.0,119620.0,1.20224604]
[1755026223618,0.0011465,119630.0,119620.0,1.20224604]
[1755026224576,0.0011465,119630.0,119620.0,1.90224604]
[1755026225007,0.0001465,119630.0,119620.0,1.90224604]
[1755026227600,0.0001465,119630.0,119620.0,1.33887944]
[1755026227784,0.0001465,119630.0,119620.0,1.90224604]
[1755026229232,0.0001465,119630.0,119620.0,1.33887944]
[1755026229601,0.0001465,119630.0,119620.0,1.90224604]
[1755026230934,0.0001465,119630.0,119620.0,1.90324604]
[1755026231291,0.0001465,119630.0,119620.0,1.77284604]
[1755026231513,0.0022065,119630.0,119620.0,1.90235604]
[1755026233105,0.0022065,119630.0,119620.0,1.90135604]
[1755026233523,0.0022065,119630.0,119620.0,1.90235604]
[1755026234824,0.0022065,119630.0,119620.0,2.18395952]
[1755026235281,0.0022065,119630.0,119620.0,1.33898944]
[1755026235497,0.0022065,119630.0,119620.0,2.18696952]
[1755026236345,0.0001465,119630.0,119620.0,2.18696952]
[1755026236773,0.0001465,119630.0,119620.0,2.60945456]
[1755026236983,0.0001465,119630.0,119620.0,2.18696952]
[1755026238438,0.0001465,119630.0,119620.0,2.60945456]
[1755026240042,0.0001465,119630.0,119620.0,1.34199944]
[1755026240251,0.0001465,119630.0,119620.0,2.18696952]
[1755026241147,0.0001465,119630.0,119620.0,2.05147952]
[1755026241148,0.0022065,119630.0,119620.0,2.05147952]
[1755026241368,0.0051365,119630.0,119620.0,1.33674944]
[1755026241591,0.0051365,119630.0,119620.0,2.18171952]
[1755026242838,0.0051365,119630.0,119620.0,1.33674944]
[1755026243043,0.0051365,119630.0,119620.0,1.90012566]
[1755026244231,0.0022065,119630.0,119620.0,1.90012566]
[1755026244558,0.0022065,119630.0,119620.0,1.90207566]
[1755026244759,0.0022065,119630.0,119620.0,1.33869944]
[1755026244958,0.0022065,119630.0,119620.0,1.90207566]
[1755026246151,0.0022065,119630.0,119620.0,1.90508566]
[1755026246375,0.0022065,119630.0,119620.0,1.90504566]
[1755026246588,0.0001465,119630.0,119620.0,1.90504566]
[1755026247479,0.0001465,119630.0,119620.0,1.77484566]
[1755026247722,0.0001465,119630.0,119620.0,1.90500566]
[1755026248271,0.0001465,119630.0,119620.0,1.77456679]
[1755026248529,0.0001465,119630.0,119620.0,1.90476679]
[1755026249464,0.0001465,119630.0,119620.0,1.77456679]
[1755026249908,0.0001465,119630.0,119620.0,1.90492679]
[1755026252042,1.83e-05,119630.0,119620.0,1.90492679]
[1755026252431,1.83e-05,119630.0,119620.0,1.34155057]
[1755026252643,1.83e-05,119630.0,119620.0,1.90488679]
[1755026253885,1.83e-05,119630.0,119620.0,2.10544679]
[1755026260230,1.83e-05,119630.0,119620.0,1.40544679]
[1755026261993,0.0004,119640.0,119630.0,0.73055836]
[1755026262171,0.00251244,119640.0,119630.0,0.94336161]
[1755026262371,0.00553244,119640.0,119630.0,0.94336161]
[1755026262554,0.00251244,119640.0,119630.0,0.94336161]
[1755026262763,0.00251244,119640.0,119630.0,0.96844561]
[1755026263167,0.00251244,119640.0,119630.0,1.17844561]
[1755026264729,0.00251244,119640.0,119630.0,1.45989689]
[1755026265079,0.00251244,119640.0,119630.0,0.61506939]
[1755026265276,0.00251244,119640.0,119630.0,1.45989689]
[1755026266880,0.00251244,119640.0,119630.0,1.46203689]
[1755026272966,0.00251244,119640.0,119630.0,1.25203689]
[1755026273589,0.00251244,119640.0,119630.0,1.25517689]
[1755026274039,0.00052244,119640.0,119630.0,1.25517689]
[1755026276220,0.00052244,119640.0,119630.0,1.94517689]
[1755026280396,0.00052244,119640.0,119630.0,1.10234939]
[1755026280564,0.00052244,119640.0,119630.0,1.94717689]
[1755026280799,0.00257244,119640.0,119630.0,1.94451689]
[1755026281012,0.00581244,119640.0,119630.0,1.51996314]
[1755026281221,0.00581244,119640.0,119630.0,1.43623989]
[1755026281433,0.00581244,119640.0,119630.0,1.43723989]
[1755026282338,0.00581244,119640.0,119630.0,1.30767989]
[1755026282553,0.00581244,119640.0,119630.0,1.43723989]
[1755026283012,0.00581244,119640.0,119630.0,1.85965364]
[1755026283240,0.00052244,119640.0,119630.0,1.94741689]
[1755026284824,0.00052244,119640.0,119630.0,1.66576654]
[1755026285797,0.00257244,119640.0,119630.0,1.66576654]
[1755026286447,0.00052244,119640.0,119630.0,1.66576654]
[1755026286915,0.00257244,119640.0,119630.0,1.66072654]
[1755026287130,0.00581244,119640.0,119630.0,1.66072654]
[1755026287998,0.00257244,119640.0,119630.0,1.66072654]
[1755026289151,0.00581244,119640.0,119630.0,1.09742939]
[1755026289392,0.00581244,119640.0,119630.0,1.57784329]
[1755026294332,0.00581244,119640.0,119630.0,1.44844329]
[1755026294333,0.17298061,119640.0,119630.0,1.44844329]
[1755026294542,0.20767224,119640.0,119630.0,1.01474614]
[1755026294748,0.20767224,119640.0,119630.0,0.82248]
[1755026295156,0.20767224,119640.0,119630.0,0.98866214]
[1755026295560,0.20767224,119640.0,119630.0,0.98666214]
[1755026295767,0.20867224,119640.0,119630.0,0.98666214]
[1755026296181,0.20867224,119640.0,119630.0,0.98662214]
[1755026296493,0.20967224,119640.0,119630.0,0.98662214]
[1755026298244,0.17498061,119640.0,119630.0,0.98662214]
[1755026298454,0.17367761,119640.0,119630.0,1.54979929]
[1755026299606,0.002,119640.0,119630.0,1.55483929]
[1755026300456,0.001,119640.0,119630.0,1.55483929]
[1755026301322,0.0082949,119650.0,119630.0,1.55483929]
[1755026301499,0.00837648,119650.0,119640.0,0.86292532]
[1755026301727,0.00837648,119650.0,119640.0,1.09490532]
[1755026302139,0.00686169,119650.0,119640.0,0.53172817]
[1755026302344,0.00837648,119650.0,119640.0,1.10316571]
[1755026302553,0.00686169,119650.0,119640.0,1.10316571]
[1755026302766,0.00786169,119650.0,119640.0,1.10316571]
[1755026303682,0.00937648,119650.0,119640.0,1.10316571]
[1755026303977,0.0246926,119650.0,119640.0,1.10316571]
[1755026304188,0.0256926,119650.0,119640.0,1.10316571]
[1755026304393,0.00886169,119650.0,119640.0,1.10316571]
[1755026305029,0.01037648,119650.0,119640.0,1.10316571]
[1755026305895,0.00886169,119650.0,119640.0,1.10316571]
[1755026306102,0.01037648,119650.0,119640.0,0.53998856]
[1755026306319,0.01037648,119650.0,119640.0,1.10316571]
[1755026306687,0.00886169,119650.0,119640.0,1.10316571]
[1755026306888,0.01037648,119650.0,119640.0,1.10316571]
[1755026307065,0.00886169,119650.0,119640.0,1.10316571]
[1755026307485,0.00886169,119650.0,119640.0,0.53998856]
[1755026307820,0.00886169,119650.0,119640.0,1.10316571]
[1755026308228,0.01037648,119650.0,119640.0,1.10316571]
[1755026308678,0.01242648,119650.0,119640.0,0.97364571]
[1755026308889,0.17958067,119650.0,119640.0,1.09804571]
[1755026309090,0.18130588,119650.0,119640.0,0.53486856]
[1755026309721,0.01415169,119650.0,119640.0,0.53486856]
[1755026309894,0.18282067,119650.0,119640.0,0.53486856]
[1755026310098,0.17806588,119650.0,119640.0,0.53486856]
[1755026310718,0.17806588,119650.0,119640.0,0.86804571]
[1755026311323,0.17806588,119650.0,119640.0,0.87020571]
[1755026313663,0.17806588,119650.0,119640.0,1.10020571]
[1755026314856,0.17806588,119650.0,119640.0,1.10345571]
[1755026316306,0.01091169,119650.0,119640.0,1.10345571]
[1755026316511,0.01242648,119650.0,119640.0,1.10329571]
[1755026316716,0.17958067,119650.0,119640.0,1.10329571]
[1755026316933,0.17806588,119650.0,119640.0,1.10329571]
[1755026318059,0.17806588,119650.0,119640.0,0.97401571]
[1755026318269,0.17806588,119650.0,119640.0,1.10317571]
[1755026319238,0.01091169,119650.0,119640.0,1.10317571]
[1755026319445,0.17958067,119650.0,119640.0,0.53999856]
[1755026319651,0.17806588,119650.0,119640.0,1.10317571]
[1755026320414,0.17806588,119650.0,119640.0,0.97401571]
[1755026320647,0.17806588,119650.0,119640.0,1.10317571]
[1755026320858,0.17806588,119650.0,119640.0,0.35916]
[1755026321707,0.17806588,119650.0,119640.0,0.52848817]
[1755026322744,0.17806588,119650.0,119640.0,0.53671718]
[1755026323169,0.17806588,119650.0,119640.0,0.53996718]
[1755026324415,0.17806588,119650.0,119640.0,1.10314433]
[1755026325009,0.17806588,119650.0,119640.0,1.09491532]
[1755026326624,0.17806588,119650.0,119640.0,1.09166532]
[1755026327252,0.17806588,119650.0,119640.0,1.09491532]
[1755026330235,0.17806588,119650.0,119640.0,0.23216]
[1755026330484,0.77926466,119650.0,119640.0,0.35896]
[1755026330708,0.21608751,119650.0,119640.0,0.35896]
[1755026331389,0.21294751,119650.0,119640.0,0.52612817]
[1755026331593,0.21294751,119650.0,119640.0,0.35896]
[1755026332396,0.21294751,119650.0,119640.0,0.39716817]
[1755026332602,0.21294751,119650.0,119640.0,0.52616817]
[1755026333042,0.21294751,119650.0,119640.0,0.359]
[1755026333460,0.21608751,119650.0,119640.0,0.359]
[1755026334204,0.21608751,119650.0,119640.0,0.52616817]
[1755026334431,0.21294751,119650.0,119640.0,0.52616817]
[1755026334635,0.21294751,119650.0,119640.0,0.359]
[1755026335083,0.21294751,119650.0,119640.0,0.52616817]
[1755026335737,0.21294751,119650.0,119640.0,0.359]
[1755026335969,0.21294751,119650.0,119640.0,0.52616817]
[1755026336409,0.21294751,119650.0,119640.0,0.359]
[1755026336942,0.21294751,119650.0,119640.0,0.36116]
[1755026337173,0.21294751,119650.0,119640.0,0.52832817]
[1755026337406,0.17601588,119650.0,119640.0,0.53157817]
[1755026337625,0.17601588,119650.0,119640.0,0.53149817]
[1755026339471,0.17601588,119650.0,119640.0,0.40257817]
[1755026339680,0.17601588,119650.0,119640.0,0.53149817]
[1755026340131,0.00886169,119650.0,119640.0,0.53149817]
[1755026340368,0.01037648,119650.0,119640.0,1.09467532]
[1755026340807,0.00886169,119650.0,119640.0,1.09467532]
[1755026341950,0.00886169,119650.0,119640.0,1.65785247]
[1755026342108,0.00886169,119650.0,119640.0,1.09467532]
[1755026342448,0.00886169,119650.0,119640.0,1.11976032]
[1755026342578,0.00886169,119650.0,119640.0,1.68285747]
[1755026344253,0.00886169,119650.0,119640.0,1.76558072]
[1755026344497,0.00786169,119650.0,119640.0,1.76558072]
[1755026345059,0.00686169,119650.0,119640.0,1.76558072]
[1755026346603,0.00686169,119650.0,119640.0,1.96558072]
[1755026349191,0.00686169,119650.0,119640.0,0.83922642]
[1755026349375,0.00686169,119650.0,119640.0,1.96558072]
[1755026349554,0.00686169,119650.0,119640.0,1.20240357]
[1755026351906,0.00686169,119650.0,119640.0,0.97240357]
[1755026353560,0.00686169,119650.0,119640.0,0.84356357]
[1755026353767,0.00686169,119650.0,119640.0,0.97240357]
[1755026355153,0.00686169,119650.0,119640.0,1.63240357]
[1755026357033,0.00896169,119650.0,119640.0,1.54631032]